bitfinex-derivatives/quotes_ETHF0:USTF0_20250214
["timestamp","ask_amount","ask_price","bid_price","bid_amount"]
[1739544103332,1.84787,2705.4,2704.9,0.73927]
[1739544103532,0.73928,2704.9,2704.8,0.5851]
[1739544103723,0.73931,2704.8,2704.7,3.2078]
[1739544104334,4.03490287,2705.2,2704.7,3.2078]
[1739544104633,0.73931,2704.8,2704.7,3.2078]
[1739544104934,0.73942,2704.4,2704.3,0.5851]
[1739544105131,0.73941,2704.5,2704.3,1.32455]
[1739544105327,0.7394,2704.5,2704.3,1.32453]
[1739544105831,0.00554539,2704.7,2704.3,0.5851]
[1739544106032,0.00554539,2704.7,2704.3,3.7929]
[1739544106228,0.00554539,2704.7,2704.6,0.73936]
[1739544106434,0.00554539,2704.7,2704.6,3.94716]
[1739544106631,3.2078,2705.5,2704.6,9.2078]
[1739544106937,3.2078,2705.5,2704.4,5.84590287]
[1739544106938,0.73927,2705.0,2704.9,0.73927]
[1739544107133,7.24270287,2705.5,2704.9,1.812]
[1739544107328,0.73925,2705.1,2705.0,0.73925]
[1739544107532,7.24270287,2705.5,2705.0,3.2078]
[1739544107733,0.00554539,2705.3,2705.0,3.2078]
[1739544107937,0.00554539,2705.3,2705.0,3.7776]
[1739544108226,0.00554539,2705.3,2705.2,0.7392]
[1739544108836,0.00554539,2705.3,2705.2,6.7392]
[1739544109038,0.73907,2705.7,2705.5,0.7391]
[1739544109232,0.73907,2705.7,2705.5,5.7719]
[1739544109439,3.2078,2706.0,2705.5,5.0328]
[1739544109742,3.2078,2706.0,2705.5,5.7719]
[1739544110043,4.03490287,2705.8,2705.2,3.7555]
[1739544110230,0.73917,2705.3,2705.2,5.5775]
[1739544110532,0.73917,2705.4,2705.3,0.73917]
[1739544110727,4.03490287,2705.8,2705.3,0.73915]
[1739544110934,3.21334539,2706.0,2705.5,0.7391]
[1739544111333,3.21334539,2706.0,2705.2,5.5775]
[1739544111534,0.73914,2705.5,2705.3,0.73917]
[1739544111738,0.73914,2705.5,2705.4,0.73915]
[1739544111934,0.73908,2705.7,2705.6,0.73909]
[1739544112243,3.21334539,2706.0,2705.5,3.2078]
[1739544112434,0.73907,2705.7,2705.6,0.73908]
[1739544112636,0.73909,2705.6,2705.5,3.2078]
[1739544113138,0.73909,2705.6,2705.5,3.94692]
[1739544113341,0.73908,2705.7,2705.6,0.73909]
[1739544113542,0.73909,2705.6,2705.5,3.2078]
[1739544113842,3.21334539,2706.0,2705.5,3.2078]
[1739544114038,3.21334539,2706.0,2705.6,0.73907]
[1739544114239,0.73906,2705.7,2705.6,0.73907]
[1739544114440,0.73909,2705.6,2705.5,3.9469]
[1739544114842,0.73909,2705.6,2705.5,3.2078]
[1739544115146,0.73909,2705.6,2705.5,3.94692]
[1739544115345,0.73909,2705.7,2705.6,0.73908]
[1739544115941,0.73909,2705.6,2705.5,3.2078]
[1739544116241,4.03490287,2705.8,2705.0,3.7776]
[1739544116447,0.73923,2705.1,2705.0,3.2078]
[1739544117743,4.03490287,2705.2,2705.0,3.2078]
[1739544117744,0.73921,2705.2,2705.0,3.2078]
[1739544117942,0.73921,2705.2,2705.1,0.73921]
[1739544118134,0.56934539,2706.0,2705.1,6.55965073]
[1739544118135,3.21334539,2706.0,2705.1,6.55965073]
[1739544118440,0.73906,2705.7,2705.6,0.73908]
[1739544118639,0.73909,2705.6,2705.5,2.9723]
[1739544118842,0.73909,2705.6,2705.5,3.60993678]
[1739544119146,0.00554539,2706.0,2705.5,3.43081486]
[1739544119341,0.74454539,2706.0,2705.9,0.73901]
[1739544119547,0.00554539,2706.0,2705.7,3.2078]
[1739544119843,0.73904,2705.8,2705.7,3.94686]
[1739544120340,0.73904,2705.8,2705.7,4.50706518]
[1739544120535,0.73904,2705.8,2705.7,3.76800518]
[1739544120739,0.73904,2705.8,2705.7,4.24963782]
[1739544121147,0.73904,2705.8,2705.7,4.25011635]
[1739544121647,0.00554539,2706.0,2705.7,4.25011635]
[1739544121848,0.00554539,2706.0,2705.9,0.73901]
[1739544122039,0.00554539,2706.0,2705.9,1.29969371]
[1739544122244,4.03490287,2707.0,2705.9,0.56068371]
[1739544122546,0.5484,2706.9,2706.5,3.2078]
[1739544122742,4.03490287,2707.3,2706.6,0.56065805]
[1739544122949,0.73873,2707.0,2706.8,0.73875]
[1739544123143,0.73873,2707.0,2706.9,0.56055987]
[1739544123345,0.00554539,2707.2,2706.7,0.48163264]
[1739544123544,0.00554539,2707.2,2706.8,3.76795613]
[1739544123756,0.00554539,2707.2,2706.8,3.68943264]
[1739544124046,0.73872,2707.0,2706.9,0.56023876]
[1739544124247,0.73872,2707.0,2706.9,1.0418714]
[1739544124451,0.73872,2707.0,2706.9,0.48163264]
[1739544125240,0.00554539,2707.2,2706.9,0.48163264]
[1739544125545,0.00554539,2707.2,2707.1,0.73868]
[1739544125740,0.00554539,2707.2,2706.9,0.48163264]
[1739544126045,0.00554539,2707.2,2707.0,3.02333264]
[1739544126247,0.74421539,2707.2,2707.0,3.02333264]
[1739544126448,0.74421539,2707.2,2707.0,2.28463264]
[1739544126647,0.74421539,2707.2,2707.1,0.73868]
[1739544126944,0.73868,2707.1,2707.0,2.28463264]
[1739544127145,0.73868,2707.1,2707.0,1.803]
[1739544127345,0.74420539,2707.2,2707.0,1.803]
[1739544127550,0.74420539,2707.2,2707.1,0.73868]
[1739544128351,0.00554539,2707.2,2707.1,0.73868]
[1739544128648,0.74419539,2707.2,2707.1,0.73868]
[1739544128852,0.73868,2707.1,2707.0,2.5417]
[1739544129250,0.00554539,2707.2,2707.0,1.803]
[1739544129443,0.00554539,2707.2,2707.1,0.73868]
[1739544129649,0.00554539,2707.2,2707.1,3.94648]
[1739544135760,0.73844,2708.0,2707.1,13.80036348]
[1739544135960,3.2078,2708.3,2707.8,3.2078]
[1739544136160,0.73846,2708.0,2707.9,0.73845]
[1739544136663,0.73837,2708.3,2708.2,0.73835]
[1739544137065,0.00554539,2708.5,2708.1,3.2078]
[1739544137258,0.00554539,2708.5,2708.2,0.5931]
[1739544137460,0.73834,2708.4,2708.3,2.52235]
[1739544137764,0.73834,2708.4,2708.3,1.784]
[1739544138562,0.73838,2708.2,2708.1,4.9898]
[1739544138759,0.73838,2708.2,2708.1,3.2078]
[1739544139066,0.73838,2708.2,2705.7,4.42690999]
[1739544139067,10.03490287,2708.2,2707.2,3.7628]
[1739544139268,0.73863,2707.3,2707.2,3.7628]
[1739544139969,0.73863,2707.3,2707.2,3.2078]
[1739544140667,0.73863,2707.3,2707.2,3.94645]
[1739544140969,0.73863,2707.3,2707.2,3.2078]
[1739544141264,4.59310287,2707.8,2707.2,3.2078]
[1739544141464,0.73854,2707.7,2707.6,0.73854]
[1739544141661,4.60170287,2708.1,2707.5,3.94636]
[1739544141662,0.73855,2707.6,2707.5,3.94636]
[1739544141970,0.73861,2707.4,2707.3,0.73861]
[1739544142158,4.60170287,2708.1,2707.2,3.68666667]
[1739544142363,0.73852,2707.7,2707.6,0.73853]
[1739544142567,0.73855,2707.6,2707.5,3.94635]
[1739544142866,0.73853,2707.7,2707.6,0.73854]
[1739544143066,0.73855,2707.6,2707.5,3.94636]
[1739544143268,0.73855,2707.6,2707.5,3.2078]
[1739544144460,4.60170287,2708.1,2707.5,3.2078]
[1739544144672,0.73855,2707.6,2707.5,3.94636]
[1739544145363,1.8462,2707.9,2707.4,0.73858]
[1739544145564,1.84617,2707.9,2707.2,4.9878]
[1739544145763,1.84617,2707.9,2707.5,3.94635]
[1739544145764,0.73856,2707.6,2707.5,3.94635]
[1739544145963,4.60170287,2708.1,2707.5,3.2078]
[1739544146169,0.5668,2708.1,2707.5,3.2078]
[1739544146469,0.7385,2707.8,2707.7,0.7385]
[1739544146771,0.73849,2707.9,2707.8,0.73848]
[1739544146960,0.5668,2708.1,2707.7,2.25559619]
[1739544147163,0.73842,2708.1,2708.0,0.73844]
[1739544147371,0.73845,2708.0,2707.9,0.73843]
[1739544147969,0.73845,2708.0,2707.9,1.21865035]
[1739544148172,0.73844,2708.0,2707.9,1.21867035]
[1739544148572,0.73844,2708.0,2707.9,1.7781907]
[1739544148776,0.73844,2708.0,2707.9,1.21867035]
[1739544148968,0.73844,2708.0,2707.9,1.03971484]
[1739544149168,0.73844,2708.0,2707.9,0.48022035]
[1739544149366,0.73844,2708.0,2707.9,1.21868035]
[1739544149770,0.5941,2708.3,2707.9,0.48022035]
[1739544149971,4.03490287,2708.4,2707.9,0.48022035]
[1739544150171,1.84583,2708.4,2707.9,0.48022035]
[1739544150373,1.84583,2708.4,2708.0,0.48022035]
[1739544150374,0.73841,2708.1,2708.0,0.48022035]
[1739544150872,0.73841,2708.1,2708.0,1.21866035]
[1739544151384,0.56984539,2708.5,2708.0,0.48022035]
[1739544151875,0.7384,2708.2,2708.1,0.73839]
[1739544152176,0.56984539,2708.5,2708.1,3.76705926]
[1739544152480,0.74387539,2708.5,2708.4,3.2078]
[1739544152674,0.74387539,2708.5,2708.2,1.768]
[1739544152875,0.73835,2708.3,2708.2,1.768]
[1739544153181,0.73835,2708.3,2708.2,2.32744275]
[1739544153570,0.73835,2708.3,2708.2,1.768]
[1739544153772,0.73835,2708.3,2708.2,0.48069717]
[1739544153977,0.73846,2707.9,2707.8,3.2078]
[1739544154177,0.73846,2707.9,2707.8,3.76750622]
[1739544154769,0.73842,2708.1,2708.0,0.73841]
[1739544154974,0.5485,2708.2,2708.1,0.73841]
[1739544155169,0.73837,2708.3,2708.2,0.73835]
[1739544155374,4.03490287,2708.7,2708.2,0.55974203]
[1739544155574,0.73834,2708.4,2708.3,0.55974203]
[1739544155981,0.73838,2708.2,2708.1,5.71118]
[1739544156176,0.00554539,2708.5,2708.1,5.53254737]
[1739544156381,0.73835,2708.4,2708.3,0.73834]
[1739544156584,0.73833,2708.4,2708.3,0.55974737]
[1739544156877,0.00554539,2708.5,2708.3,0.55974737]
[1739544157079,0.00554539,2708.5,2708.4,4.50583062]
[1739544157677,0.00554539,2708.5,2708.4,4.50559864]
[1739544158575,5.88013287,2709.3,2708.4,3.76726864]
[1739544158768,0.73822,2708.8,2708.7,3.94604]
[1739544158971,5.88013287,2709.3,2708.7,6.26750864]
[1739544159173,5.88013287,2709.3,2708.7,5.70804]
[1739544159581,0.73821,2708.9,2708.8,0.55940657]
[1739544159781,0.73822,2708.8,2708.7,4.97534539]
[1739544159977,0.73822,2708.8,2708.7,2.32698884]
[1739544160178,0.73822,2708.8,2708.7,1.76754539]
[1739544160475,0.73822,2708.8,2707.7,1.84629]
[1739544160476,0.73843,2708.1,2707.9,5.70725]
[1739544160683,0.73843,2708.1,2708.0,0.55978112]
[1739544161083,0.73843,2708.1,2708.0,0.56001615]
[1739544163174,0.73841,2708.1,2708.0,0.56031462]
[1739544163480,0.73846,2707.9,2707.8,0.00554539]
[1739544164978,3.94626,2707.9,2707.8,0.00554539]
[1739544165385,0.73865,2707.2,2707.1,3.2078]
[1739544165581,0.73865,2707.2,2707.1,3.7686352]
[1739544165777,4.03490287,2707.4,2707.1,3.7686352]
[1739544165978,4.03490287,2707.7,2707.2,0.5608352]
[1739544166284,0.7386,2707.5,2707.3,1.05244498]
[1739544166483,4.03490287,2707.7,2707.3,0.49160978]
[1739544166484,0.7386,2707.4,2707.3,0.49160978]
[1739544166672,0.7386,2707.4,2707.3,1.05229492]
[1739544166871,4.04044826,2707.7,2707.3,1.05229492]
[1739544167086,0.73859,2707.5,2707.3,0.49160978]
[1739544167481,0.7386,2707.4,2707.3,0.49160978]
[1739544167781,0.7386,2707.4,2707.3,1.05228496]
[1739544168485,0.73859,2707.5,2707.3,1.79090496]
[1739544168687,4.04044826,2707.7,2707.3,0.49160978]
[1739544168886,0.73856,2707.6,2707.3,0.49160978]
[1739544169087,0.00554539,2707.7,2707.4,3.76828766]
[1739544169289,0.73857,2707.5,2707.4,3.2078]
[1739544169479,0.73857,2707.5,2707.4,3.76827634]
[1739544169683,0.73857,2707.5,2707.4,4.25988612]
[1739544169879,0.73857,2707.5,2707.4,4.99848612]
[1739544170385,0.73857,2707.5,2707.4,4.25988612]
[1739544171684,0.73857,2707.5,2707.4,0.49160978]
[1739544172583,0.73857,2707.5,2707.2,0.00554539]
[1739544172782,0.00554539,2707.7,2707.5,0.73857]
[1739544172984,0.00554539,2707.7,2707.4,3.2078]
[1739544172985,0.73856,2707.6,2707.4,3.94638]
[1739544173482,0.73863,2707.3,2707.2,0.00554539]
[1739544173886,4.04044826,2707.7,2707.2,0.00554539]
[1739544174091,0.73863,2707.3,2707.2,0.74419539]
[1739544174589,0.73863,2707.3,2707.2,1.235454]
[1739544174984,4.04044826,2707.7,2707.2,0.496804]
[1739544175186,0.73863,2707.3,2707.2,0.74418539]
[1739544175594,0.73863,2707.3,2707.2,0.74419539]
[1739544176189,0.73863,2707.3,2707.2,1.23532089]
[1739544176392,0.73862,2707.4,2707.3,0.7386]
[1739544176586,0.73856,2707.6,2707.5,0.73855]
[1739544176992,0.73857,2707.6,2707.5,0.73855]
[1739544177188,0.74407539,2707.7,2707.6,0.73855]
[1739544177895,0.74407539,2707.7,2707.6,1.2296755]
[1739544178088,0.00554539,2707.7,2707.6,1.2296755]
[1739544178788,0.00554539,2707.7,2707.6,3.54148147]
[1739544179490,0.00554539,2707.7,2707.6,3.54134425]
[1739544180388,0.5956,2708.4,2707.6,2.80279425]
[1739544180592,0.73838,2708.3,2708.2,0.73837]
[1739544180789,0.5956,2708.4,2708.0,3.2078]
[1739544180989,0.73841,2708.1,2708.0,3.2078]
[1739544181184,0.73841,2708.1,2708.0,4.50571458]
[1739544181385,0.5956,2708.4,2708.0,3.76727458]
[1739544181585,0.00554539,2708.3,2708.0,3.6989255]
[1739544181790,0.74392539,2708.3,2708.2,0.73837]
[1739544182089,0.74392539,2708.3,2708.2,1.29777599]
[1739544182090,0.00554539,2708.3,2708.2,1.29777599]
[1739544182281,0.74389539,2708.3,2708.2,1.78890149]
[1739544182692,0.74389539,2708.3,2708.2,1.05053149]
[1739544182897,0.74389539,2708.3,2708.2,0.4911255]
[1739544183194,0.74389539,2708.3,2708.2,1.78892339]
[1739544183393,0.74389539,2708.3,2708.2,1.2295055]
[1739544183582,0.74389539,2708.3,2708.2,1.78883599]
[1739544183788,0.00554539,2708.3,2708.2,1.78883599]
[1739544183991,0.73826,2708.7,2708.6,0.73825]
[1739544184187,0.73826,2708.7,2708.6,4.99629842]
[1739544184389,0.73826,2708.7,2708.6,3.6989255]
[1739544184591,0.73826,2708.7,2708.6,4.4371955]
[1739544184791,0.5956,2708.8,2708.6,3.6989255]
[1739544184988,1.33385,2708.8,2708.7,0.73825]
[1739544185595,0.73825,2708.7,2708.6,3.2078]
[1739544185796,0.73825,2708.7,2708.6,3.94607]
[1739544185994,0.73825,2708.7,2708.6,4.43589801]
[1739544186495,0.73825,2708.7,2708.6,3.69762801]
[1739544186906,0.73825,2708.7,2708.6,4.43589801]
[1739544187594,0.73825,2708.7,2708.6,3.69762801]
[1739544187790,0.73825,2708.7,2708.6,4.43589801]
[1739544187991,0.5956,2708.8,2708.6,3.69762801]
[1739544188192,0.73824,2708.8,2708.7,0.73822]
[1739544188597,0.73824,2708.8,2708.7,1.22804801]
[1739544188790,0.73824,2708.8,2708.7,0.48982801]
[1739544189897,0.73824,2708.8,2708.7,1.22807801]
[1739544190289,0.73824,2708.8,2708.7,0.48982801]
[1739544190993,0.73824,2708.8,2708.7,1.22807801]
[1739544191393,0.00554539,2708.9,2708.7,0.48982801]
[1739544191598,0.74376539,2708.9,2708.8,1.29892]
[1739544191899,0.74376539,2708.9,2708.8,0.5607]
[1739544192901,0.73825,2708.8,2708.7,0.73823]
[1739544193504,0.73824,2708.8,2708.7,0.73822]
[1739544194200,0.00554539,2708.9,2708.6,4.94934539]
[1739544194402,0.73825,2708.8,2708.7,0.73823]
[1739544198512,0.74375539,2708.9,2708.8,0.73822]
[1739544199196,0.73825,2708.8,2708.7,0.73822]
[1739544199397,0.00554539,2708.9,2708.6,3.21334539]
[1739544199596,0.73825,2708.7,2708.6,5.67059539]
[1739544200005,0.73825,2708.7,2708.6,6.15962415]
[1739544200996,0.73825,2708.7,2708.6,0.49457415]
[1739544201203,1.27745,2708.7,2708.6,0.49457415]
[1739544201599,1.27745,2708.7,2708.6,0.00554539]
[1739544207403,0.00554539,2708.9,2708.8,0.73822]
[1739544207600,0.00554539,2708.9,2708.8,4.99680775]
[1739544207910,3.21629972,2709.4,2709.3,0.73808]
[1739544208207,3.21629972,2710.3,2709.3,5.47841457]
[1739544208503,3.21629972,2711.5,2709.3,5.47841457]
[1739544208504,3.21629972,2710.6,2710.0,3.2078]
[1739544208711,3.21629972,2710.6,2710.5,3.2078]
[1739544208909,3.21629972,2710.6,2710.5,3.76741457]
[1739544209100,3.2078,2711.2,2710.5,3.76741457]
[1739544209101,0.00553495,2710.8,2710.5,3.7662006]
[1739544209302,0.00553495,2710.8,2710.6,2.2744006]
[1739544209509,0.00553495,2710.8,2710.6,1.716]
[1739544209817,0.74321495,2710.8,2710.6,1.716]
[1739544210115,0.00553495,2710.8,2710.6,1.716]
[1739544210310,0.74321495,2710.8,2710.6,1.716]
[1739544210612,0.7377,2710.7,2710.6,1.716]
[1739544211315,0.00553495,2710.8,2710.6,1.716]
[1739544211612,0.74322495,2710.8,2710.6,1.716]
[1739544211913,0.7377,2710.7,2710.6,1.716]
[1739544212115,0.74322495,2710.8,2710.6,1.716]
[1739544212412,0.00553495,2710.8,2710.6,1.716]
[1739544212615,0.74322495,2710.8,2710.6,1.716]
[1739544212813,0.00553495,2710.8,2710.6,1.716]
[1739544213116,0.74322495,2710.8,2710.6,1.716]
[1739544213712,0.74323495,2710.8,2710.6,1.716]
[1739544213901,0.74323495,2710.8,2710.7,0.52721948]
[1739544214709,0.74323495,2710.8,2710.7,2.23921948]
[1739544215006,0.00553495,2710.8,2710.7,2.23921948]
[1739544215214,0.74320495,2710.8,2710.7,2.23921948]
[1739544216214,0.00553495,2710.8,2710.7,2.23921948]
[1739544216410,0.00553495,2710.8,2710.7,2.97691948]
[1739544217213,0.00553495,2710.8,2710.7,3.81913481]
[1739544218605,0.74320495,2710.8,2710.7,3.81913481]
[1739544219118,0.00553495,2710.8,2710.7,3.81913481]
[1739544219318,0.00553495,2710.8,2710.7,3.08143481]
[1739544219517,0.74320495,2710.8,2710.7,3.81913481]
[1739544219717,0.74320495,2710.8,2710.7,1.36943481]
[1739544219911,0.74320495,2710.8,2710.7,3.07543481]
[1739544220315,0.74320495,2710.8,2710.7,2.23321948]
[1739544221020,0.74320495,2710.8,2710.7,2.97091948]
[1739544221406,0.00553495,2710.8,2710.7,2.97091948]
[1739544221617,0.74320495,2710.8,2710.7,2.97091948]
[1739544222312,0.74320495,2710.8,2710.7,2.23321948]
[1739544222719,0.74320495,2710.8,2710.7,2.97091948]
[1739544224119,0.74320495,2710.8,2710.7,2.23321948]
[1739544224529,0.74320495,2710.8,2710.7,2.97091948]
[1739544224724,0.74320495,2710.8,2710.7,2.23321948]
[1739544225222,0.74320495,2710.8,2710.7,2.97091948]
[1739544225829,0.74320495,2710.8,2710.7,3.81170352]
[1739544227619,0.00553495,2710.8,2710.7,3.81170352]
[1739544228123,3.68637,2712.3,2710.7,3.81170352]
[1739544228124,1.84362,2711.7,2711.3,0.73752]
[1739544228318,0.73751,2711.4,2711.3,3.94532]
[1739544228625,0.73751,2711.4,2711.3,4.48472]
[1739544228819,0.73751,2711.4,2711.3,3.7472]
[1739544229020,0.5971,2711.8,2711.3,3.7472]
[1739544229227,0.73742,2711.8,2711.7,0.73741]
[1739544229423,0.74102313,2711.8,2711.7,2.43341]
[1739544229824,0.00360313,2711.8,2711.7,2.43341]
[1739544230030,0.74100313,2711.8,2711.7,4.91383085]
[1739544230514,0.00360313,2711.8,2711.7,4.91383085]
[1739544230716,3.21629972,2712.7,2711.8,1.84349]
[1739544230918,0.5439,2712.8,2712.2,3.2078]
[1739544231120,0.5439,2712.8,2712.4,0.73722]
[1739544231327,3.21629972,2712.7,2712.3,2.8406]
[1739544231523,0.73724,2712.4,2712.3,2.2743]
[1739544232127,0.73724,2712.4,2712.3,1.94530352]
[1739544232319,3.95353972,2712.4,2712.3,1.36800352]
[1739544233021,3.95353972,2712.4,2712.3,0.52721948]
[1739544233522,0.73729,2712.2,2712.1,0.00553495]
[1739544234123,0.73729,2712.2,2712.1,1.39790172]
[1739544234323,0.73729,2712.2,2712.1,1.39236677]
[1739544234530,0.73743,2711.7,2711.6,0.57027589]
[1739544234830,0.73748,2711.5,2711.4,21.01]
[1739544237436,0.73748,2711.5,2711.4,21.56728794]
[1739544237830,0.73748,2711.5,2711.4,22.13756383]
[1739544239030,0.73748,2711.5,2711.4,21.56728794]
[1739544239426,0.73748,2711.5,2711.4,22.30479794]
[1739544239631,0.73748,2711.5,2711.4,21.01]
[1739544239928,0.73748,2711.5,2711.4,21.56745623]
[1739544240536,0.73748,2711.5,2711.4,0.55745623]
[1739544240735,0.73754,2711.3,2711.2,0.00553495]
[1739544241124,3.94534,2711.3,2711.2,0.00553495]
[1739544241832,0.73762,2711.0,2710.9,0.56968966]
[1739544242035,3.95391972,2711.0,2710.9,0.56968966]
[1739544242331,0.73775,2710.6,2710.4,2.82368966]
[1739544242532,0.73773,2710.6,2710.5,0.55800279]
[1739544243123,0.5533,2710.8,2710.5,0.55807568]
[1739544243326,0.5533,2710.8,2710.4,2.252]
[1739544243526,0.73776,2710.5,2710.4,2.252]
[1739544243834,0.73776,2710.5,2710.4,2.80901395]
[1739544244226,0.73776,2710.5,2710.4,2.24901395]
[1739544244540,0.73778,2710.4,2710.3,22.52633495]
[1739544244739,0.73778,2710.4,2710.3,19.87648068]
[1739544245034,3.94558,2710.4,2710.3,0.00553495]
[1739544245635,0.73786,2710.1,2710.0,0.56968966]
[1739544245936,0.73797,2709.7,2709.6,1.695]
[1739544246233,0.73797,2709.7,2709.6,2.25303763]
[1739544246532,0.73797,2709.7,2709.6,3.0796953]
[1739544246729,3.95425972,2709.8,2709.6,3.0796953]
[1739544246928,0.73796,2709.8,2709.6,5.72945767]
[1739544247132,0.73796,2709.8,2709.6,6.24606741]
[1739544247530,0.00553495,2709.9,2709.6,6.24606741]
[1739544247730,0.73796,2709.8,2709.6,6.98405741]
[1739544247926,0.73795,2709.8,2709.7,1.34326741]
[1739544249337,0.00553495,2709.9,2709.7,1.34326741]
[1739544249733,0.00553495,2709.9,2709.8,2.42895]
[1739544249937,0.00553495,2709.9,2709.8,3.56490596]
[1739544250238,0.00553495,2709.9,2709.8,4.17022337]
[1739544250535,0.74345495,2709.9,2709.8,3.61356741]
[1739544250736,0.74345495,2709.9,2709.8,4.35151741]
[1739544250931,0.74345495,2709.9,2709.8,3.61356741]
[1739544251137,0.74345495,2709.9,2709.8,3.03426741]
[1739544251840,0.74345495,2709.9,2709.8,1.34326741]
[1739544252137,0.74345495,2709.9,2709.8,0.51660974]
[1739544252534,0.73797,2709.7,2709.6,3.2078]
[1739544253138,0.73797,2709.7,2709.6,3.94579]
[1739544253536,0.73797,2709.7,2709.6,4.54817704]
[1739544253750,0.73797,2709.7,2709.6,1.34037704]
[1739544254043,0.73797,2709.7,2709.6,0.51552963]
[1739544255339,0.73803,2709.5,2709.4,0.00553495]
[1739544255535,3.94583,2709.5,2709.4,0.00553495]
[1739544255730,3.94583,2709.5,2709.4,4.95e-06]
[1739544257541,10.54113,2709.5,2709.4,4.95e-06]
[1739544259447,12.22513,2709.5,2709.4,4.95e-06]
[1739544259941,0.7383,2708.5,2708.4,3.7625]
[1739544260146,0.7383,2708.5,2708.4,3.2078]
[1739544260544,0.7383,2708.5,2708.4,3.72224803]
[1739544262049,0.7383,2708.5,2708.4,3.2078]
[1739544263748,0.73835,2708.3,2708.2,19.32753495]
[1739544265047,0.73835,2708.3,2708.2,19.84258509]
[1739544266441,0.73835,2708.3,2708.2,0.52058509]
[1739544267050,0.73835,2708.3,2708.2,0.00553495]
[1739544270055,0.73835,2708.3,2708.2,0.5219164]
[1739544270850,0.00553495,2708.5,2708.2,0.5219164]
[1739544271056,0.00553495,2708.5,2708.3,4.316]
[1739544271358,0.00553495,2708.5,2708.3,4.8907]
[1739544271558,0.74383495,2708.5,2708.4,1.34222711]
[1739544272050,0.74383495,2708.5,2708.4,0.51638145]
[1739544272357,4.02766518,2709.3,2708.4,0.51638145]
[1739544272552,0.73819,2708.9,2708.8,3.2078]
[1739544272744,0.73819,2708.9,2708.8,4.8918]
[1739544273351,0.73819,2708.9,2708.8,6.23411245]
[1739544275156,0.73819,2708.9,2708.8,4.55011245]
[1739544275362,3.94599,2708.9,2708.8,1.34231245]
[1739544275758,7.72111259,2708.9,2708.8,1.34231245]
[1739544275961,0.73833,2708.4,2708.3,1.1082]
[1739544277053,3.95565259,2708.4,2708.3,1.1082]
[1739544277253,3.95565259,2708.4,2708.3,0.5439]
[1739544277866,3.21732259,2708.7,2708.3,0.5439]
[1739544278174,0.7383,2708.5,2708.4,3.94612]
[1739544278356,0.7383,2708.5,2708.4,4.54202]
[1739544278556,0.7383,2708.5,2708.4,3.8037]
[1739544278758,0.7383,2708.5,2708.4,4.54203]
[1739544279158,5.05874495,2709.1,2708.4,4.36200058]
[1739544279159,0.7383,2708.6,2708.4,4.36200058]
[1739544279355,0.7383,2708.6,2708.5,0.55830058]
[1739544279559,0.7383,2708.6,2708.5,1.29671191]
[1739544279965,0.7383,2708.6,2708.4,4.54201]
[1739544280176,3.21333495,2709.1,2708.5,2.23742327]
[1739544280362,3.21333495,2709.1,2708.9,3.2078]
[1739544280363,0.00553495,2709.1,2708.9,3.2078]
[1739544280558,0.74367495,2709.1,2709.0,0.5499]
[1739544282668,0.74367495,2709.1,2709.0,1.1162]
[1739544283067,0.74367495,2709.1,2709.0,1.85436]
[1739544283273,0.74367495,2709.1,2709.0,4.08975732]
[1739544283767,0.74367495,2709.1,2709.0,3.35186118]
[1739544284671,0.74367495,2709.1,2709.0,4.09002118]
[1739544285273,0.74367495,2709.1,2709.0,3.35186118]
[1739544286270,0.74367495,2709.1,2709.0,2.78556118]
[1739544286465,0.74367495,2709.1,2709.0,1.676]
[1739544286671,0.00553495,2709.1,2708.7,1.673]
[1739544286869,0.73825,2708.7,2708.6,4.3687]
[1739544287075,3.95557259,2708.7,2708.6,0.56014958]
[1739544287368,0.7383,2708.5,2708.4,1.672]
[1739544287674,0.7383,2708.5,2708.4,2.23231067]
[1739544288369,0.7383,2708.5,2708.4,2.23232794]
[1739544288676,0.7383,2708.5,2708.4,1.89307931]
[1739544288865,0.7383,2708.5,2708.4,1.33275137]
[1739544298583,3.21732259,2708.7,2708.5,0.73827]
[1739544298774,1.84557,2708.8,2708.4,1.33275137]
[1739544298975,0.7383,2708.5,2708.4,2.07107137]
[1739544299578,0.7383,2708.5,2708.4,1.33275137]
[1739544300479,3.21732259,2708.7,2708.4,1.33275137]
[1739544300687,0.589,2708.9,2708.6,3.2078]
[1739544300688,0.73821,2708.9,2708.6,3.2078]
[1739544300886,0.73824,2708.8,2708.7,0.73822]
[1739544301090,0.7382,2708.9,2708.8,0.73819]
[1739544301384,0.7382,2708.9,2708.8,1.29909]
[1739544301580,0.00553495,2709.1,2708.8,0.5609]
[1739544301785,0.74368495,2709.1,2709.0,0.73816]
[1739544301989,0.00553495,2709.1,2709.0,4.50585834]
[1739544302480,3.21732259,2709.6,2709.0,3.76769834]
[1739544302679,5.62584259,2709.9,2709.3,3.2078]
[1739544302882,5.62584259,2709.9,2709.4,0.73805]
[1739544303076,0.73798,2709.7,2709.6,0.73799]
[1739544303282,1.84462,2710.2,2709.6,3.76745876]
[1739544303283,3.21732259,2710.2,2709.6,3.76745876]
[1739544303488,0.73787,2710.1,2709.9,3.2078]
[1739544303686,0.73787,2710.1,2709.9,5.61372]
[1739544303982,0.73789,2710.1,2709.9,4.8758]
[1739544304284,0.73789,2710.1,2710.0,1.33097047]
[1739544304586,0.00553495,2710.2,2710.0,1.33097047]
[1739544304981,0.00553495,2710.2,2710.1,0.51259668]
[1739544305486,3.21732259,2710.8,2710.1,0.51259668]
[1739544305688,0.5792,2710.9,2710.3,3.2078]
[1739544305984,0.5792,2710.9,2710.4,2.97267]
[1739544306188,0.73769,2710.8,2710.5,0.73775]
[1739544306485,0.5792,2710.9,2710.4,2.74749668]
[1739544306486,0.73774,2710.6,2710.4,2.74749668]
[1739544306686,0.73776,2710.5,2710.4,2.2349]
[1739544306887,0.73773,2710.6,2710.4,2.97267]
[1739544307091,0.73773,2710.6,2710.4,2.2349]
[1739544307286,0.73772,2710.7,2710.4,2.97268]
[1739544307887,3.21732259,2710.8,2710.4,2.2349]
[1739544308088,0.73768,2710.8,2710.6,0.73772]
[1739544308285,0.00553495,2710.9,2710.4,2.2349]